fUST/lending_fUST_20240906
["ID","MTS","AMOUNT","RATE_DAILY","PERIOD"]
[337319373,1725600659590,-658.77,0.00020483,2]
[337319374,1725600659599,-500.0,0.00020483,2]
[337319375,1725600659608,-500.0,0.00020483,2]
[337319376,1725600659617,-500.0,0.00020483,2]
[337319377,1725600659627,-500.0,0.00020483,2]
[337319378,1725600659638,-500.0,0.00020483,2]
[337319379,1725600659649,-638.69119518,0.00020483,2]
[337319380,1725600659659,-500.0,0.00020483,2]
[337319381,1725600659685,-500.0,0.00020483,2]
[337319382,1725600659703,-500.0,0.00020483,2]
[337319383,1725600659719,-500.0,0.00020483,2]
[337319384,1725600659731,-500.0,0.00020483,2]
[337319385,1725600659742,-500.0,0.00020483,2]
[337319386,1725600659753,-500.0,0.00020483,2]
[337319387,1725600659764,-151.0,0.00020483,2]
[337319388,1725600659775,-505.09682914,0.00020483,2]
[337319389,1725600659785,-502.65877379,0.00020483,2]
[337319390,1725600659795,-500.0,0.00020483,2]
[337319391,1725600659805,-555.9844036,0.00020483,2]
[337319392,1725600659815,-500.0,0.00020483,2]
[337319393,1725600659825,-500.0,0.00020483,2]
[337319394,1725600659835,-193.595704,0.00020483,2]
[337319395,1725600659845,-502.99350801,0.00020483,2]
[337319396,1725600659855,-500.0,0.00020483,2]
[337319397,1725600659865,-500.0,0.00020483,2]
[337319398,1725600659877,-500.0,0.00020483,2]
[337319399,1725600659887,-200.3738183,0.00020483,2]
[337319400,1725600659897,-500.0,0.00020483,2]
[337319401,1725600659908,-500.0,0.00020483,2]
[337319402,1725600659920,-500.0,0.00020483,2]
[337319403,1725600659931,-500.0,0.00020483,2]
[337319404,1725600659942,-151.0,0.00020483,2]
[337319405,1725600659954,-500.0,0.00020483,2]
[337319406,1725600659963,-506.67040624,0.00020483,2]
[337319407,1725600659973,-1423.69823,0.00020483,2]
[337319408,1725600659983,-504.4193382,0.00020483,2]
[337319409,1725600659993,-1423.69823,0.00020483,2]
[337319410,1725600660003,-500.0,0.00020483,2]
[337319411,1725600660013,-500.0,0.00020483,2]
[337319412,1725600660024,-186.010764,0.00020483,2]
[337319413,1725600660035,-514.71074449,0.00020483,2]
[337319414,1725600660045,-500.0,0.00020483,2]
[337319415,1725600660056,-186.010764,0.00020483,2]
[337319416,1725600660066,-500.0,0.00020483,2]
[337319417,1725600660076,-500.0,0.00020483,2]
[337319418,1725600660087,-504.74871431,0.00020483,2]
[337319419,1725600660097,-151.0,0.00020483,2]
[337319420,1725600660107,-500.0,0.00020483,2]
[337319421,1725600660117,-500.0,0.00020483,2]
[337319422,1725600660127,-151.0,0.00020483,2]
[337319423,1725600660139,-500.0,0.00020483,2]
[337319424,1725600660149,-619.69010058,0.00020483,2]
[337319425,1725600660160,-235.884571,0.00020484,2]
[337319426,1725600660170,-235.884571,0.00020484,2]
[337319427,1725600660181,-151.0,0.00020484,2]
[337319428,1725600660191,-151.0,0.00020484,2]
[337319429,1725600660201,-151.0,0.00020484,2]
[337319430,1725600660212,-500.0,0.00020484,2]
[337319431,1725600660222,-500.0,0.00020484,2]
[337319432,1725600660233,-1403.48,0.00020484,2]
[337319433,1725600660245,-772.05,0.00020484,2]
[337319434,1725600660256,-1679.48,0.00020484,2]
[337319435,1725600660267,-500.0,0.00020484,2]
[337319436,1725600660277,-1367.49,0.00020484,2]
[337319437,1725600660288,-510.19931738,0.00020484,2]
[337319438,1725600660298,-500.0,0.00020484,2]
[337319439,1725600660308,-500.0,0.00020484,2]
[337319440,1725600660318,-500.0,0.00020484,2]
[337319441,1725600660328,-500.0,0.00020484,2]
[337319442,1725600660338,-500.0,0.00020484,2]
[337319443,1725600660348,-500.0,0.00020484,2]
[337319444,1725600660358,-500.0,0.00020484,2]
[337319445,1725600660368,-274.1129374,0.00020484,2]
[337319446,1725600660377,-846.32,0.00020484,2]
[337319447,1725600660387,-500.0,0.00020484,2]
[337319448,1725600660397,-500.0,0.00020484,2]
[337319449,1725600660406,-500.0,0.00020484,2]
[337319450,1725600660416,-500.0,0.00020484,2]
[337319451,1725600660426,-500.0,0.00020484,2]
[337319452,1725600660436,-500.0,0.00020484,2]
[337319453,1725600660447,-500.0,0.00020484,2]
[337319454,1725600660457,-542.49912843,0.00020484,2]
[337319455,1725600660466,-574.28,0.00020484,2]
[337319456,1725600660476,-500.0,0.00020484,2]
[337319457,1725600660485,-500.0,0.00020484,2]
[337319458,1725600660495,-823.53,0.00020484,2]
[337319459,1725600660504,-500.0,0.00020484,2]
[337319460,1725600660514,-500.0,0.00020484,2]
[337319461,1725600660523,-838.71,0.00020484,2]
[337319462,1725600660533,-539.76,0.00020484,2]
[337319463,1725600660542,-701.38,0.00020484,2]
[337319464,1725600660552,-500.0,0.00020484,2]
[337319465,1725600660562,-500.0,0.00020484,2]
[337319466,1725600660571,-500.0,0.00020484,2]
[337319467,1725600660581,-500.0,0.00020484,2]
[337319468,1725600660592,-500.0,0.00020484,2]
[337319469,1725600660602,-500.0,0.00020484,2]
[337319470,1725600660611,-1785.02,0.00020484,2]
[337319471,1725600660621,-500.0,0.00020484,2]
[337319472,1725600660630,-504.89324163,0.00020484,2]
[337319473,1725600660640,-500.0,0.00020484,2]
[337319474,1725600660650,-383.9212287,0.00020484,2]
[337319475,1725600660661,-500.0,0.00020484,2]
[337319476,1725600660671,-500.0,0.00020484,2]
[337319477,1725600660683,-2023.84,0.00020484,2]
[337319478,1725600660693,-500.0,0.00020484,2]
[337319479,1725600660704,-1308.07,0.00020484,2]
[337319480,1725600660713,-151.0,0.00020484,2]
[337319481,1725600660724,-500.0,0.00020484,2]
[337319482,1725600660735,-500.0,0.00020484,2]
[337319483,1725600660745,-1128.89,0.00020484,2]
[337319484,1725600660756,-500.0,0.00020484,2]
[337319485,1725600660765,-500.0,0.00020484,2]
[337319486,1725600660775,-500.0,0.00020484,2]
[337319487,1725600660785,-500.0,0.00020484,2]
[337319488,1725600660795,-500.0,0.00020484,2]
[337319489,1725600660804,-593.71,0.00020484,2]
[337319490,1725600660814,-535.71,0.00020484,2]
[337319491,1725600660824,-1278.61,0.00020484,2]
[337319492,1725600660833,-528.49,0.00020484,2]
[337319493,1725600660843,-151.0,0.00020484,2]
[337319494,1725600660852,-151.0,0.00020484,2]
[337319495,1725600660862,-212.760703,0.00020484,2]
[337319496,1725600660871,-629.57,0.00020484,2]
[337319497,1725600660881,-1076.004857,0.00020484,2]
[337319498,1725600660890,-786.5,0.00020484,2]
[337319499,1725600660900,-1076.004857,0.00020484,2]
[337319500,1725600660910,-943.04,0.00020484,2]
[337319501,1725600660919,-715.00735,0.00020484,2]
[337319502,1725600660930,-715.00735,0.00020484,2]
[337319503,1725600660939,-500.0,0.00020484,2]
[337319504,1725600660951,-1306.663022,0.00020484,2]
[337319505,1725600660961,-500.0,0.00020484,2]
[337319506,1725600660971,-1306.66302446,0.00020484,2]
[337319507,1725600660981,-2463.6,0.00020484,2]
[337319508,1725600660991,-151.0,0.00020484,2]
[337319509,1725600661000,-186.010764,0.00020484,2]
[337319510,1725600661010,-186.010764,0.00020484,2]
[337319511,1725600661019,-151.0,0.00020486,2]
[337319512,1725600661029,-151.0,0.00020494,2]
[337319513,1725600661038,-235.884571,0.00020494,2]
[337319514,1725600661048,-235.884571,0.00020494,2]
[337319515,1725600661057,-156.081052,0.00020494,2]
[337319516,1725600661067,-151.0,0.00020494,2]
[337319517,1725600661077,-155.877942,0.00020495,2]
[337319518,1725600661087,-500.0,0.00020495,2]
[337319519,1725600661096,-500.0,0.00020495,2]
[337319520,1725600661105,-214.69227494,0.00020495,2]
[337319521,1725600661116,-500.0,0.00020495,2]
[337319522,1725600661126,-500.0,0.00020495,2]
[337319523,1725600661137,-500.0,0.00020495,2]
[337319524,1725600661147,-543.72403102,0.00020495,2]
[337319525,1725600661156,-500.0,0.00020495,2]
[337319526,1725600661166,-235.884571,0.00020495,2]
[337319527,1725600661176,-235.884571,0.00020495,2]
[337319528,1725600661187,-500.0,0.00020495,2]
[337319529,1725600661198,-500.0,0.00020495,2]
[337319530,1725600661216,-500.0,0.00020495,2]
[337319531,1725600661225,-500.0,0.00020495,2]
[337319532,1725600661235,-500.0,0.00020495,2]
[337319533,1725600661244,-500.0,0.00020495,2]
[337319534,1725600661254,-547.14487268,0.00020495,2]
[337319535,1725600661263,-500.0,0.00020495,2]
[337319536,1725600661273,-500.0,0.00020495,2]
[337319537,1725600661283,-513.1751574,0.00020495,2]
[337319538,1725600661293,-500.0,0.00020495,2]
[337319539,1725600661302,-1537.21,0.00020495,2]
[337319540,1725600661312,-500.0,0.00020495,2]
[337319541,1725600661321,-500.0,0.00020495,2]
[337319542,1725600661331,-500.0,0.00020495,2]
[337319543,1725600661340,-517.94922226,0.00020495,2]
[337319544,1725600661350,-500.0,0.00020495,2]
[337319545,1725600661360,-500.0,0.00020495,2]
[337319546,1725600661370,-500.0,0.00020495,2]
[337319547,1725600661381,-500.0,0.00020495,2]
[337319548,1725600661391,-855.7,0.00020495,2]
[337319549,1725600661401,-500.0,0.00020495,2]
[337319550,1725600661410,-500.0,0.00020495,2]
[337319551,1725600661547,-500.0,0.00020495,2]
[337319552,1725600661557,-500.0,0.00020495,2]
[337319553,1725600661566,-754.34,0.00020495,2]
[337319554,1725600661576,-500.0,0.00020495,2]
[337319555,1725600661585,-500.0,0.00020495,2]
[337319556,1725600661596,-500.0,0.00020495,2]
[337319557,1725600661605,-500.0,0.00020495,2]
[337319558,1725600661615,-500.0,0.00020495,2]
[337319559,1725600661625,-500.0,0.00020495,2]
[337319560,1725600661636,-525.2029328,0.00020495,2]
[337319561,1725600661646,-500.0,0.00020495,2]
[337319562,1725600661655,-500.0,0.00020495,2]
[337319563,1725600661665,-500.0,0.00020495,2]
[337319564,1725600661678,-500.0,0.00020495,2]
[337319565,1725600661688,-500.0,0.00020495,2]
[337319566,1725600661699,-500.0,0.00020495,2]
[337319567,1725600661708,-826.7,0.00020495,2]
[337319568,1725600661719,-500.0,0.00020495,2]
[337319569,1725600661729,-500.0,0.00020495,2]
[337319570,1725600661739,-500.0,0.00020495,2]
[337319571,1725600661749,-500.0,0.00020495,2]
[337319572,1725600661759,-500.0,0.00020495,2]
[337319573,1725600661769,-500.0,0.00020495,2]
[337319574,1725600661779,-500.0,0.00020495,2]
[337319575,1725600661789,-500.0,0.00020495,2]
[337319576,1725600661798,-500.0,0.00020495,2]
[337319577,1725600661807,-500.0,0.00020495,2]
[337319578,1725600661817,-391.09612941,0.00020495,2]
[337319579,1725600661827,-500.0,0.00020495,2]
[337319580,1725600661836,-500.0,0.00020495,2]
[337319581,1725600661846,-500.0,0.00020495,2]
[337319582,1725600661856,-500.0,0.00020495,2]
[337319583,1725600661866,-500.0,0.00020495,2]
[337319584,1725600661876,-745.5,0.00020495,2]
[337319585,1725600661886,-646.61,0.00020495,2]
[337319586,1725600661896,-500.0,0.00020495,2]
[337319587,1725600661906,-500.0,0.00020495,2]
[337319588,1725600661915,-504.99450898,0.00020495,2]
[337319589,1725600661926,-506.68881237,0.00020495,2]
[337319590,1725600661936,-500.0,0.00020495,2]
[337319591,1725600661949,-500.0,0.00020495,2]
[337319592,1725600661959,-500.0,0.00020495,2]
[337319593,1725600661969,-500.0,0.00020495,2]
[337319594,1725600661979,-500.0,0.00020495,2]
[337319595,1725600661989,-500.0,0.00020495,2]
[337319596,1725600661999,-500.0,0.00020495,2]
[337319597,1725600662008,-275.20644,0.00020495,2]
[337319598,1725600662018,-503.52492629,0.00020495,2]
[337319599,1725600662028,-500.0,0.00020495,2]
[337319600,1725600662038,-307.21814272,0.00020495,2]
[337319601,1725600662047,-500.0,0.00020495,2]
[337319602,1725600662057,-500.0,0.00020495,2]
[337319603,1725600662067,-500.0,0.00020495,2]
[337319604,1725600662077,-500.0,0.00020495,2]
[337319605,1725600662087,-500.0,0.00020495,2]
[337319606,1725600662097,-500.0,0.00020495,2]
[337319607,1725600662108,-500.0,0.00020495,2]
[337319608,1725600662119,-500.0,0.00020495,2]
[337319609,1725600662130,-500.0,0.00020495,2]
[337319610,1725600662142,-500.0,0.00020495,2]
[337319611,1725600662152,-273.19935482,0.00020495,2]
[337319612,1725600662161,-379.76151572,0.00020495,2]
[337319613,1725600662171,-501.76345942,0.00020495,2]
[337319614,1725600662181,-500.0,0.00020495,2]
[337319615,1725600662191,-500.0,0.00020495,2]
[337319616,1725600662205,-500.0,0.00020495,2]
[337319617,1725600662214,-500.0,0.00020495,2]
[337319618,1725600662224,-500.0,0.00020495,2]
[337319619,1725600662233,-500.0,0.00020495,2]
[337319620,1725600662242,-569.46,0.00020495,2]
[337319621,1725600662252,-500.0,0.00020495,2]
[337319622,1725600662262,-502.72251865,0.00020495,2]
[337319623,1725600662272,-500.0,0.00020495,2]
[337319624,1725600662281,-500.0,0.00020495,2]
[337319625,1725600662291,-500.0,0.00020495,2]
[337319626,1725600662300,-500.0,0.00020495,2]
[337319627,1725600662310,-500.0,0.00020495,2]
[337319628,1725600662320,-500.0,0.00020495,2]
[337319629,1725600662329,-500.0,0.00020495,2]
[337319630,1725600662339,-513.18518072,0.00020495,2]
[337319631,1725600662349,-504.94051102,0.00020495,2]
[337319632,1725600662359,-500.0,0.00020495,2]
[337319633,1725600662368,-505.25074283,0.00020495,2]
[337319634,1725600662378,-500.0,0.00020495,2]
[337319635,1725600662388,-500.0,0.00020495,2]
[337319636,1725600662397,-500.0,0.00020495,2]
[337319637,1725600662406,-500.0,0.00020495,2]
[337319638,1725600662416,-852.95,0.00020495,2]
[337319639,1725600662426,-500.0,0.00020495,2]
[337319640,1725600662436,-500.0,0.00020495,2]
[337319641,1725600662448,-500.0,0.00020495,2]
[337319642,1725600662458,-500.0,0.00020495,2]
[337319643,1725600662469,-151.0,0.00020495,2]
[337319644,1725600662479,-500.0,0.00020495,2]
[337319645,1725600662488,-512.27019683,0.00020495,2]
[337319646,1725600662497,-504.14963447,0.00020495,2]
[337319647,1725600662507,-500.0,0.00020495,2]
[337319648,1725600662518,-500.0,0.00020495,2]
[337319649,1725600662528,-500.0,0.00020495,2]
[337319650,1725600662542,-500.0,0.00020495,2]
[337319651,1725600662552,-296.902126,0.00020495,2]
[337319652,1725600662561,-1076.004857,0.00020495,2]
[337319653,1725600662571,-1076.004857,0.00020495,2]
[337319654,1725600662580,-715.00735,0.00020495,2]
[337319655,1725600662591,-715.007352,0.00020495,2]
[337319656,1725600662601,-161.694662,0.00020495,2]
[337319657,1725600662614,-1423.69823,0.00020495,2]
[337319658,1725600662625,-1423.69823,0.00020495,2]
[337319659,1725600662636,-151.0,0.00020495,2]
[337319660,1725600662647,-151.0,0.00020495,2]
[337319661,1725600662657,-1463.117587,0.00020545,2]
[337319662,1725600662668,-3491.67262316,0.00020547,2]
[337319663,1725600662683,-75152.90075171,0.00020573,2]
[337319664,1725600662692,-151.0,0.00020573,2]
[337319665,1725600662703,-186.010764,0.00020573,2]
[337319666,1725600662715,-186.010764,0.00020573,2]
[337319667,1725600662724,-1614.74,0.00020657,2]
[337319668,1725600662734,-6079.53,0.00020657,2]
[337319669,1725600662746,-605.42,0.00020657,2]
[337319670,1725600662758,-1270.29,0.00020657,2]
[337319671,1725600662769,-8639.8,0.00020657,2]
[337319672,1725600662779,-500.0,0.00020657,2]
[337319673,1725600662788,-645.63,0.00020657,2]
[337319674,1725600662798,-500.0,0.00020657,2]
[337319675,1725600662807,-500.0,0.00020657,2]
[337319676,1725600662817,-1496.57,0.00020657,2]
[337319677,1725600662826,-846.48,0.00020657,2]
[337319678,1725600662835,-1666.97,0.00020657,2]
[337319679,1725600662845,-2146.58,0.00020657,2]
[337319680,1725600662855,-500.0,0.00020657,2]
[337319681,1725600662864,-500.0,0.00020657,2]
[337319682,1725600662874,-1075.59,0.00020657,2]
[337319683,1725600662883,-939.1,0.00020657,2]
[337319684,1725600662894,-500.0,0.00020657,2]
[337319685,1725600662903,-1819.02,0.00020657,2]
[337319686,1725600662913,-500.0,0.00020658,2]
[337319687,1725600662923,-3297.18,0.00020658,2]
[337319688,1725600662932,-1114.42,0.00020658,2]
[337319689,1725600662942,-960.33,0.00020658,2]
[337319690,1725600662952,-500.0,0.00020658,2]
[337319691,1725600662961,-1469.72,0.00020658,2]
[337319692,1725600662971,-28202.93,0.00020658,2]
[337319693,1725600662981,-1256.26,0.00020658,2]
[337319694,1725600662991,-500.0,0.00020658,2]
[337319695,1725600663001,-1065.29,0.00020658,2]
[337319696,1725600663011,-944.83,0.00020658,2]
[337319697,1725600663021,-506.90326031,0.00020658,2]
[337319698,1725600663031,-500.0,0.00020658,2]
[337319699,1725600663041,-1296.47,0.00020658,2]
[337319700,1725600663050,-2127.98,0.00020658,2]
[337319701,1725600663061,-500.0,0.00020658,2]
[337319702,1725600663071,-707.11,0.00020658,2]
[337319703,1725600663080,-500.0,0.00020658,2]
[337319704,1725600663089,-500.0,0.00020658,2]
[337319705,1725600663098,-500.0,0.00020658,2]
[337319706,1725600663107,-500.0,0.00020658,2]
[337319707,1725600663117,-2766.06,0.00020658,2]
[337319708,1725600663127,-1129.76,0.00020658,2]
[337319709,1725600663136,-500.0,0.00020658,2]
[337319710,1725600663146,-1211.83,0.00020658,2]
[337319711,1725600663157,-500.0,0.00020658,2]
[337319712,1725600663167,-1277.93,0.00020658,2]
[337319713,1725600663178,-500.0,0.00020658,2]
[337319714,1725600663188,-500.0,0.00020658,2]
[337319715,1725600663199,-699.45,0.00020658,2]
[337319716,1725600663209,-500.0,0.00020658,2]
[337319717,1725600663220,-1566.33,0.00020658,2]
[337319718,1725600663230,-500.0,0.00020658,2]
[337319719,1725600663240,-500.0,0.00020658,2]
[337319720,1725600663251,-500.0,0.00020658,2]
[337319721,1725600663261,-55953.84,0.00020658,2]
[337319722,1725600663271,-500.0,0.00020658,2]
[337319723,1725600663282,-3687.98800304,0.0002066,7]
[337319724,1725600663294,-156.0,0.0002071,4]
[337319725,1725600663304,-500.90071859,0.00020721,2]
[337319726,1725600663314,-907.39730399,0.00020721,2]
[337319727,1725600663326,-179.02508858,0.00020721,2]
[337319728,1725600663336,-508.20528604,0.00020756,2]
[337319729,1725600663346,-500.0,0.00020756,2]
[337319730,1725600663357,-500.0,0.00020756,2]
[337319731,1725600663368,-500.0,0.00020756,2]
[337319732,1725600663378,-500.0,0.00020756,2]
[337319733,1725600663388,-500.0,0.00020756,2]
[337319734,1725600663398,-500.0,0.00020756,2]
[337319735,1725600663408,-885.51,0.00020756,2]
[337319736,1725600663418,-500.0,0.00020756,2]
[337319737,1725600663428,-619.65,0.00020756,2]
[337319738,1725600663438,-500.0,0.00020756,2]
[337319739,1725600663448,-715.68,0.00020756,2]
[337319740,1725600663553,-500.0,0.00020756,2]
[337319741,1725600663572,-1084.19,0.00020756,2]
[337319742,1725600663582,-500.0,0.00020756,2]
[337319743,1725600663592,-500.0,0.00020756,2]
[337319744,1725600663602,-500.0,0.00020756,2]
[337319745,1725600663612,-500.0,0.00020756,2]
[337319746,1725600663622,-747.01,0.00020756,2]
[337319747,1725600663633,-500.0,0.00020756,2]
[337319748,1725600663643,-500.0,0.00020756,2]
[337319749,1725600663655,-500.0,0.00020756,2]
[337319750,1725600663667,-500.0,0.00020756,2]
[337319751,1725600663680,-532.9,0.00020756,2]
[337319752,1725600663689,-512.91056482,0.00020756,2]
[337319753,1725600663702,-500.0,0.00020756,2]
[337319754,1725600663713,-820.41,0.00020756,2]
[337319755,1725600663724,-500.0,0.00020756,2]
[337319756,1725600663734,-500.0,0.00020756,2]
[337319757,1725600663744,-500.0,0.00020756,2]
[337319758,1725600663755,-500.0,0.00020756,2]
[337319759,1725600663765,-500.0,0.00020756,2]
[337319760,1725600663776,-500.0,0.00020756,2]
[337319761,1725600663786,-500.0,0.00020756,2]
[337319762,1725600663796,-500.0,0.00020756,2]
[337319763,1725600663806,-500.0,0.00020756,2]
[337319764,1725600663816,-500.0,0.00020756,2]
[337319765,1725600663826,-500.0,0.00020756,2]
[337319766,1725600663836,-500.0,0.00020756,2]
[337319767,1725600663846,-500.0,0.00020756,2]
[337319768,1725600663856,-500.0,0.00020756,2]
[337319769,1725600663865,-500.0,0.00020756,2]
[337319770,1725600663875,-915.58,0.00020756,2]
[337319771,1725600663884,-500.0,0.00020756,2]
[337319772,1725600663894,-500.0,0.00020756,2]
[337319773,1725600663903,-551.60977079,0.00020756,2]
[337319774,1725600663914,-500.0,0.00020756,2]
[337319775,1725600663923,-500.0,0.00020756,2]
[337319776,1725600663933,-1560.23,0.00020756,2]
[337319777,1725600663943,-511.22513631,0.00020756,2]
[337319778,1725600663959,-472.22790551,0.00020756,2]
[337319779,1725600663969,-500.0,0.00020756,2]
[337319780,1725600663978,-1210.73,0.00020756,2]
[337319781,1725600663987,-585.83,0.00020756,2]
[337319782,1725600663996,-500.0,0.00020756,2]
[337319783,1725600664005,-500.0,0.00020756,2]
[337319784,1725600664015,-500.0,0.00020756,2]
[337319785,1725600664024,-985.49,0.00020756,2]
[337319786,1725600664034,-500.0,0.00020756,2]
[337319787,1725600664044,-1093.54,0.00020756,2]
[337319788,1725600664055,-500.0,0.00020756,2]
[337319789,1725600664065,-821.96,0.00020756,2]
[337319790,1725600664075,-500.0,0.00020756,2]
[337319791,1725600664086,-500.0,0.00020756,2]
[337319792,1725600664096,-7874.67,0.00020756,2]
[337319793,1725600664105,-1424.74,0.00020756,2]
[337319794,1725600664115,-564.47,0.00020756,2]
[337319795,1725600664125,-500.0,0.00020756,2]
[337319796,1725600664136,-1347.96,0.00020756,2]
[337319797,1725600664147,-1399.9,0.00020756,2]
[337319798,1725600664158,-910.33,0.00020756,2]
[337319799,1725600664168,-500.0,0.00020756,2]
[337319800,1725600664178,-500.0,0.00020756,2]
[337319801,1725600664188,-571.31,0.00020756,2]
[337319802,1725600664200,-671.91,0.00020756,2]
[337319803,1725600664210,-500.0,0.00020756,2]
[337319804,1725600664220,-654.5,0.00020756,2]
[337319805,1725600664230,-500.0,0.00020756,2]
[337319806,1725600664240,-500.0,0.00020756,2]
[337319807,1725600664250,-2392.4,0.00020756,2]
[337319808,1725600664260,-500.0,0.00020756,2]
[337319809,1725600664270,-103984.90210884,0.00020756,2]
[337319810,1725600665215,-500.0,0.00020109,2]
[337319811,1725600665225,-500.0,0.00020109,2]
[337319812,1725600665235,-500.0,0.00020209,2]
[337319813,1725600665245,-500.0,0.00020483,2]
[337319814,1725600665255,-12614.54789116,0.00020756,2]
[337319815,1725600665264,-500.0,0.00020756,2]
[337319816,1725600665273,-558.76,0.00020756,2]
[337319817,1725600665283,-299.355362,0.00020756,2]
[337319818,1725600665293,-500.0,0.00020756,2]
[337319819,1725600665304,-1423.69823,0.00020756,2]
[337319820,1725600665313,-445.28404402,0.00020756,2]
[337319821,1725600665341,-54.71595598,0.00020756,2]
[337319822,1725600665351,-650.68118223,0.00020756,2]
[337319823,1725600665363,-773.01704777,0.00020756,2]
[337319824,1725600665373,-431.96926195,0.00020756,2]
[337319825,1725600665387,-68.03073805,0.00020756,2]
[337319826,1725600665396,-500.0,0.00020756,2]
[337319827,1725600665406,-500.0,0.00020756,2]
[337319828,1725600665417,-500.0,0.00020756,2]
[337319829,1725600665428,-186.010764,0.00020756,2]
[337319830,1725600665441,-186.010755,0.00020756,2]
[337319831,1725600665456,-151.0,0.00020756,2]
[337319832,1725600665466,-151.0,0.00020756,2]
[337319833,1725600665477,-500.0,0.00020756,2]
[337319834,1725600665487,-500.0,0.00020757,2]
[337319835,1725600665497,-500.0,0.00020757,2]
[337319836,1725600665508,-508.64104025,0.00020757,2]
[337319837,1725600665517,-500.0,0.00020757,2]
[337319838,1725600665527,-500.0,0.00020757,2]
[337319839,1725600665537,-500.0,0.00020757,2]
[337319840,1725600665547,-502.3483784,0.00020757,2]
[337319841,1725600665556,-500.0,0.00020757,2]
[337319842,1725600665566,-500.0,0.00020757,2]
[337319843,1725600665576,-500.0,0.00020757,2]
[337319844,1725600665586,-500.0,0.00020757,2]
[337319845,1725600665596,-500.0,0.00020757,2]
[337319846,1725600665608,-500.0,0.00020757,2]
[337319847,1725600665619,-489.0081849,0.00020757,2]
[337319848,1725600665630,-200.0,0.00020757,2]
[337319849,1725600665641,-592.21391956,0.00020757,2]
[337319850,1725600665650,-500.0,0.00020757,2]
[337319851,1725600665660,-500.0,0.00020757,2]
[337319852,1725600665669,-461.41382408,0.00020757,2]
[337319853,1725600665682,-500.0,0.00020757,2]
[337319854,1725600665693,-500.0,0.00020757,2]
[337319855,1725600665704,-500.0,0.00020757,2]
[337319856,1725600665715,-500.0,0.00020757,2]
[337319857,1725600665725,-500.0,0.00020757,2]
[337319858,1725600665736,-527.28557258,0.00020757,2]
[337319859,1725600665748,-173.21697916,0.00020757,2]
[337319860,1725600665759,-500.0,0.00020757,2]
[337319861,1725600665770,-866.69,0.00020757,2]
[337319862,1725600665780,-500.0,0.00020757,2]
[337319863,1725600665789,-500.0,0.00020757,2]
[337319864,1725600665799,-721.96,0.00020757,2]
[337319865,1725600665808,-343.02971074,0.00020757,2]
[337319866,1725600665821,-156.97028926,0.00020757,2]
[337319867,1725600665831,-500.0,0.00020757,2]
[337319868,1725600665841,-500.0,0.00020757,2]
[337319869,1725600665851,-500.0,0.00020757,2]
[337319870,1725600665860,-500.0,0.00020757,2]
[337319871,1725600665870,-500.0,0.00020757,2]
[337319872,1725600665880,-500.0,0.00020757,2]